bitfinex-derivatives/quotes_ETHF0:USTF0_20241230
["timestamp","ask_amount","ask_price","bid_price","bid_amount"]
[1735561627937,1.0906,3428.6,3428.5,0.29209]
[1735561628439,4.07355,3429.0,3428.7,0.29207]
[1735561628741,0.5737,3429.0,3428.6,3.2078]
[1735561629139,0.5737,3429.0,3428.7,0.29207]
[1735561629337,0.29206,3428.9,3428.7,0.29207]
[1735561629535,0.86575,3429.0,3428.7,0.29207]
[1735561629839,0.5737,3429.0,3428.9,0.29206]
[1735561630042,1.0906,3429.3,3429.1,0.29203]
[1735561630538,1.0906,3429.3,3428.8,0.5682]
[1735561630740,0.292,3429.6,3429.3,0.29201]
[1735561631338,0.29201,3429.5,3429.3,0.29201]
[1735561632339,0.574,3429.7,3429.0,5.53738997]
[1735561632537,0.292,3429.6,3429.3,0.29202]
[1735561633245,2.32958997,3429.6,3429.0,3.2078]
[1735561633441,0.29204,3429.1,3429.0,3.2078]
[1735561633837,2.32958997,3429.6,3428.8,0.29206]
[1735561634041,0.85205,3429.0,3428.8,0.29206]
[1735561634240,1.1554,3428.9,3428.8,0.29206]
[1735561634641,1.1554,3428.9,3428.6,3.2078]
[1735561634941,1.1554,3428.9,3428.8,0.29207]
[1735561635137,0.56,3429.0,3428.7,2.32958997]
[1735561635443,0.29203,3429.3,3429.1,0.29204]
[1735561635644,0.29203,3429.3,3429.2,3.2078]
[1735561635843,0.577,3429.5,3429.2,3.2078]
[1735561636047,0.29202,3429.3,3429.2,3.2078]
[1735561636452,0.29202,3429.4,3429.2,3.49983]
[1735561636654,0.86901,3429.5,3429.3,0.29202]
[1735561636855,0.577,3429.5,3429.4,0.29201]
[1735561637044,1.1662,3429.6,3429.5,0.29201]
[1735561637246,0.29197,3430.0,3429.8,0.29197]
[1735561637247,0.29196,3430.0,3429.8,0.29197]
[1735561637452,1.179,3430.0,3429.8,3.2078]
[1735561637650,0.29197,3429.9,3429.8,3.2078]
[1735561638256,1.179,3430.0,3429.8,3.49978]
[1735561638455,0.29197,3429.9,3429.8,3.49978]
[1735561638651,0.29197,3429.9,3429.8,3.2078]
[1735561641558,0.29197,3429.9,3429.8,3.49978]
[1735561642056,0.29197,3429.9,3429.8,3.2078]
[1735561642656,0.29201,3429.5,3429.4,0.29201]
[1735561642859,0.29201,3429.4,3429.3,1.16]
[1735561643152,1.1665,3429.4,3429.0,6.79722945]
[1735561643348,0.29203,3429.2,3429.0,6.79722945]
[1735561643545,0.29203,3429.2,3429.1,0.29204]
[1735561643953,0.29203,3429.2,3429.0,6.79722945]
[1735561643954,0.5615,3429.3,3429.2,0.29203]
[1735561644154,0.5615,3429.3,3429.0,2.32958997]
[1735561644356,0.5615,3429.3,3429.2,0.29203]
[1735561644558,0.5615,3429.3,3429.0,2.32958997]
[1735561645056,0.5615,3429.3,3429.2,0.29203]
[1735561645257,0.5615,3429.3,3429.1,0.29204]
[1735561645258,0.29203,3429.2,3429.1,0.29204]
[1735561645553,0.5615,3429.3,3429.2,0.29203]
[1735561645949,0.85352,3429.3,3429.2,0.29203]
[1735561646557,0.5615,3429.3,3429.2,0.29203]
[1735561646853,0.85352,3429.3,3429.2,0.29203]
[1735561647653,0.29203,3429.2,3429.1,0.29203]
[1735561647847,0.29205,3429.0,3428.9,3.49985]
[1735561648159,0.5615,3429.3,3428.6,7.95722945]
[1735561648160,0.29207,3428.7,3428.6,7.08930945]
[1735561648460,0.29207,3428.7,3428.6,6.79722945]
[1735561648651,0.29207,3428.7,3428.6,0.29208]
[1735561649360,0.29208,3428.6,3428.5,3.49989]
[1735561649958,0.29208,3428.6,3428.5,3.2078]
[1735561651260,0.2921,3428.4,3428.3,0.29211]
[1735561651464,0.29211,3428.3,3428.2,0.29211]
[1735561651756,1.1065,3428.5,3428.0,3.50007563]
[1735561651961,0.29212,3428.2,3428.1,0.29212]
[1735561652166,0.29212,3428.2,3428.0,3.50007563]
[1735561652457,0.88072,3428.1,3428.0,3.50007563]
[1735561652856,0.88072,3428.1,3428.0,3.2078]
[1735561653053,0.88072,3428.1,3428.0,3.49993]
[1735561653254,1.1065,3428.5,3428.0,3.2078]
[1735561653555,3.2078,3428.4,3427.8,6.79722945]
[1735561653756,3.2078,3428.4,3427.6,3.2078]
[1735561653954,3.2078,3428.4,3427.9,2.32958997]
[1735561654155,1.1065,3428.5,3428.0,3.2078]
[1735561654461,1.1065,3428.5,3428.0,4.3676]
[1735561654860,1.1065,3428.5,3428.4,0.2921]
[1735561657665,3.2078,3429.3,3428.4,3.2078]
[1735561657867,0.29203,3429.2,3429.1,0.29203]
[1735561658260,4.63922,3429.3,3429.2,0.29203]
[1735561658459,0.29203,3429.2,3429.0,0.29204]
[1735561658760,0.29203,3429.2,3429.1,0.29204]
[1735561659262,4.3472,3429.3,3428.8,3.2078]
[1735561659460,4.3472,3429.3,3428.9,0.29205]
[1735561660062,0.29203,3429.2,3429.0,0.29204]
[1735561660263,4.63923,3429.3,3429.2,0.29203]
[1735561660460,4.63923,3429.3,3429.1,0.29203]
[1735561660860,4.63923,3429.3,3429.2,0.29203]
[1735561661062,0.5566,3429.3,3429.2,3.49983]
[1735561661266,0.6075,3429.6,3429.4,0.29201]
[1735561661267,0.8995,3429.6,3429.4,0.29201]
[1735561661565,0.8995,3429.6,3429.5,0.29201]
[1735561662471,0.6075,3429.6,3429.5,0.29201]
[1735561662969,0.8995,3429.6,3429.5,0.29201]
[1735561663668,0.29201,3429.5,3429.3,0.29202]
[1735561664059,0.6075,3429.6,3429.2,3.2078]
[1735561664264,0.29205,3429.0,3428.9,0.29206]
[1735561664469,3.8153,3429.6,3428.8,3.2078]
[1735561664769,0.29204,3429.2,3429.0,0.29204]
[1735561664965,0.6048,3429.1,3429.0,0.29204]
[1735561665166,0.6048,3429.1,3428.8,3.2078]
[1735561665368,0.6048,3429.1,3429.0,0.29205]
[1735561665563,0.89684,3429.1,3429.0,0.29205]
[1735561666068,0.6048,3429.1,3428.8,3.2078]
[1735561666269,0.89684,3429.1,3428.9,0.29205]
[1735561666469,0.29205,3429.0,3428.9,0.29205]
[1735561666669,0.6048,3429.1,3428.8,3.49986]
[1735561666969,0.29206,3428.9,3428.8,3.2078]
[1735561667367,0.29206,3428.9,3428.8,3.49987]
[1735561667665,0.29206,3428.9,3428.8,3.2078]
[1735561671168,0.2921,3428.4,3428.3,6.79722945]
[1735561671369,5.82948997,3428.4,3428.3,6.79722945]
[1735561671870,0.29211,3428.3,3428.2,6.79722945]
[1735561672060,1.98171,3428.3,3428.2,6.79722945]
[1735561672261,1.98171,3428.3,3428.2,4.31702945]
[1735561672467,1.98171,3428.3,3428.2,2.47662945]
[1735561673070,1.98171,3428.3,3428.2,1.55652945]
[1735561673274,0.29212,3428.1,3428.0,9.06297261]
[1735561673476,0.29218,3427.5,3427.3,4.06979]
[1735561673770,0.29218,3427.5,3427.4,0.29218]
[1735561674073,0.29217,3427.7,3427.6,0.29217]
[1735561674271,0.29217,3427.7,3427.3,3.7776]
[1735561674471,0.29215,3427.8,3427.7,0.29216]
[1735561674775,0.29215,3427.9,3427.7,0.29216]
[1735561675076,3.97717316,3428.3,3427.6,0.29216]
[1735561675773,0.29217,3427.7,3427.5,0.29217]
[1735561675973,0.29217,3427.6,3427.5,0.29217]
[1735561676274,0.29217,3427.7,3427.6,0.29217]
[1735561676475,2.32958997,3428.1,3427.3,3.7776]
[1735561676668,0.29213,3428.0,3427.6,0.29216]
[1735561676869,2.32958997,3428.1,3427.6,0.29216]
[1735561677063,0.29216,3427.7,3427.6,0.29216]
[1735561677573,2.32958997,3428.1,3427.6,0.29216]
[1735561678372,0.29215,3427.9,3427.8,0.29215]
[1735561678868,1.6896,3428.3,3427.3,3.7776]
[1735561679068,0.29216,3427.8,3427.3,3.7776]
[1735561679268,0.29216,3427.7,3427.6,0.29217]
[1735561679470,0.29216,3427.8,3427.6,0.29216]
[1735561679872,0.29216,3427.8,3427.3,3.7776]
[1735561680074,0.29215,3427.9,3427.4,0.29218]
[1735561680269,0.29212,3428.2,3427.5,0.5893]
[1735561680470,1.6896,3428.3,3427.5,0.5893]
[1735561680674,0.29214,3427.9,3427.8,0.29215]
[1735561680874,0.29214,3428.0,3427.6,0.5586]
[1735561681072,0.29214,3428.0,3427.8,0.29214]
[1735561681270,1.1326,3428.3,3427.6,0.5586]
[1735561681477,0.29213,3428.1,3428.0,0.29213]
[1735561681678,0.2921,3428.4,3428.3,0.29211]
[1735561681973,0.29209,3428.5,3428.4,0.29209]
[1735561682176,2.57966316,3428.6,3428.5,0.29209]
[1735561682370,2.28757316,3428.6,3428.2,0.5704]
[1735561682566,0.2921,3428.4,3428.3,0.2921]
[1735561682769,0.29211,3428.4,3428.3,0.29211]
[1735561682974,2.28757316,3428.6,3428.3,0.29211]
[1735561683170,2.32958997,3428.7,3427.8,0.5704]
[1735561683373,5.53738997,3428.4,3427.8,0.5704]
[1735561683574,5.53738997,3428.4,3427.7,3.2078]
[1735561683771,0.29215,3427.8,3427.7,3.2078]
[1735561684677,0.29218,3427.4,3427.3,3.2078]
[1735561684865,2.32958997,3427.4,3426.7,12.27077261]
[1735561685180,0.29222,3427.0,3426.9,0.29223]
[1735561685370,2.90848997,3427.4,3426.7,12.27077261]
[1735561685673,0.29223,3426.9,3426.8,0.29223]
[1735561685868,0.29222,3427.0,3426.9,0.29223]
[1735561687179,0.29223,3426.9,3426.8,0.29223]
[1735561688072,2.90848997,3427.4,3426.8,0.29223]
[1735561688374,0.29222,3427.0,3426.8,0.29224]
[1735561688771,0.29222,3427.0,3426.9,0.29223]
[1735561688970,0.29223,3426.9,3426.8,0.29223]
[1735561689174,0.29219,3427.3,3426.8,0.29223]
[1735561689377,0.29223,3426.9,3426.8,0.29224]
[1735561690372,0.29224,3426.8,3426.7,3.50004]
[1735561691672,0.29224,3426.8,3426.7,3.2078]
[1735561692179,0.29224,3426.7,3426.6,0.5655]
[1735561692378,0.29224,3426.7,3426.6,0.44834008]
[1735561692678,3.93843,3426.7,3425.7,9.35529261]
[1735561692883,2.32958997,3426.2,3425.7,9.35529261]
[1735561693178,0.29233,3425.7,3425.6,0.29233]
[1735561693379,2.32958997,3426.2,3425.5,12.56311261]
[1735561693673,2.32958997,3426.2,3425.5,12.27077261]
[1735561693975,2.62192997,3425.6,3425.5,12.27077261]
[1735561694675,0.29234,3425.6,3425.5,12.27077261]
[1735561694881,0.29234,3425.6,3425.5,3.2078]
[1735561695180,2.62192997,3425.6,3425.5,3.2078]
[1735561696773,0.29234,3425.6,3425.5,3.2078]
[1735561696973,2.62192997,3425.6,3425.5,3.2078]
[1735561698380,2.62192997,3425.6,3425.1,0.61]
[1735561698381,5.53738997,3425.6,3425.1,0.61]
[1735561698684,0.29241,3424.8,3424.7,0.5966]
[1735561698983,0.29241,3424.7,3424.6,3.2078]
[1735561699186,0.29243,3424.5,3424.3,0.29244]
[1735561699388,0.29243,3424.6,3424.3,0.29244]
[1735561699581,0.29243,3424.6,3424.3,0.29245]
[1735561699779,0.29243,3424.6,3424.4,0.29244]
[1735561700383,2.32958997,3424.7,3424.2,4.3629]
[1735561700687,0.29244,3424.4,3424.2,4.65535]
[1735561701187,2.32958997,3424.7,3424.2,4.3629]
[1735561701386,0.29245,3424.3,3424.2,3.2078]
[1735561701784,2.32958997,3424.4,3423.9,0.29248]
[1735561701978,3.2078,3424.6,3423.9,0.29248]
[1735561701979,2.62205997,3424.1,3423.9,0.29248]
[1735561702985,2.32958997,3424.4,3423.8,3.2078]
[1735561703492,2.62202997,3424.4,3424.3,0.29245]
[1735561703693,2.32958997,3424.4,3423.8,3.2078]
[1735561703989,0.29246,3424.2,3424.0,0.29247]
[1735561704184,2.32958997,3424.4,3423.8,3.2078]
[1735561704185,0.29245,3424.3,3424.1,0.29247]
[1735561704986,0.29245,3424.3,3423.8,3.2078]
[1735561705186,0.29245,3424.3,3424.2,0.29246]
[1735561705385,3.2078,3424.6,3424.5,0.29243]
[1735561705586,2.32958997,3424.7,3424.6,0.29242]
[1735561706291,2.32958997,3424.7,3424.3,1.1498]
[1735561706491,2.32958997,3424.7,3424.5,0.29243]
[1735561706492,2.62200997,3424.7,3424.5,0.29243]
[1735561706987,6.40698997,3425.0,3424.4,0.5695]
[1735561707193,6.40698997,3425.0,3424.9,0.2924]
[1735561707194,3.2078,3425.0,3424.9,0.2924]
[1735561707495,2.32958997,3425.3,3424.6,3.2078]
[1735561707695,2.32958997,3425.3,3425.1,0.29238]
[1735561707696,2.62195997,3425.3,3425.1,0.29238]
[1735561707895,2.32958997,3425.3,3425.2,0.5953]
[1735561708092,2.62194997,3425.3,3425.2,0.5953]
[1735561708593,2.32958997,3425.3,3425.2,0.88767]
[1735561709191,2.62194997,3425.3,3425.2,0.5953]
[1735561709892,2.62194997,3425.3,3425.2,0.88767]
[1735561710592,2.32958997,3425.3,3425.2,0.88767]
[1735561710994,3.2078,3425.4,3425.3,0.29236]
[1735561711387,2.62192997,3425.6,3425.2,0.5953]
[1735561711596,2.62192997,3425.6,3425.4,0.29235]
[1735561711995,2.32958997,3425.6,3425.5,0.29235]
[1735561712199,3.2078,3426.0,3425.2,0.5953]
[1735561712200,0.29235,3425.5,3425.2,0.5953]
[1735561713299,0.29235,3425.5,3425.4,0.29236]
[1735561713499,0.29234,3425.6,3425.5,0.29235]
[1735561713693,2.32958997,3425.9,3425.2,0.5953]
[1735561713995,0.29235,3425.6,3425.4,0.29235]
[1735561714197,2.32958997,3425.9,3425.3,0.29236]
[1735561714198,0.29235,3425.5,3425.3,0.29236]
[1735561714498,0.29237,3425.2,3425.1,0.5964]
[1735561714998,0.29237,3425.3,3425.1,0.88877]
[1735561715197,0.29237,3425.3,3425.2,0.29237]
[1735561715499,0.29236,3425.4,3425.2,0.29237]
[1735561715695,0.29236,3425.4,3425.3,0.29236]
[1735561716791,5.53738997,3425.6,3425.4,0.29235]
[1735561716792,0.29235,3425.5,3425.4,0.29235]
[1735561716992,0.29235,3425.5,3425.1,0.5964]
[1735561716993,0.29235,3425.5,3425.3,0.29236]
[1735561717193,0.29235,3425.5,3425.4,0.5601]
[1735561718397,0.29235,3425.5,3425.4,0.85246]
[1735561718787,5.82972997,3425.6,3425.5,0.29235]
[1735561719192,0.29235,3425.5,3425.4,0.85245]
[1735561720494,5.53738997,3425.6,3425.4,0.5601]
[1735561720694,5.82972997,3425.6,3425.5,0.29235]
[1735561721695,0.29235,3425.5,3425.4,0.85245]
[1735561723500,0.29235,3425.5,3425.4,0.5601]
[1735561723999,0.29235,3425.5,3425.4,0.85246]
[1735561726899,0.29235,3425.5,3425.4,0.5601]
[1735561727299,0.29235,3425.5,3425.4,0.85246]
[1735561727495,0.29235,3425.5,3425.4,0.5601]
[1735561728101,0.29235,3425.5,3425.4,0.85246]
[1735561729696,3.2078,3425.8,3425.4,0.5601]
[1735561729898,3.2078,3425.8,3425.7,0.29233]
[1735561730501,5.49537316,3426.2,3425.6,3.2078]
[1735561730704,3.2078,3426.2,3426.1,0.2923]
[1735561731406,3.2078,3426.2,3426.0,0.2923]
[1735561731610,3.50009,3426.2,3426.1,0.2923]
[1735561732003,0.29232,3425.9,3425.8,0.29232]
[1735561732209,5.53738997,3426.2,3425.7,1.1098]
[1735561732408,0.2923,3426.1,3426.0,0.2923]
[1735561733306,5.53738997,3426.2,3425.7,1.1098]
[1735561733507,0.29231,3426.0,3425.9,0.29231]
[1735561734008,0.29232,3425.9,3425.8,0.29232]
[1735561734509,5.53738997,3426.2,3425.7,1.1098]
[1735561734709,0.29231,3426.0,3425.9,0.29231]
[1735561736410,5.82967997,3426.2,3426.1,0.2923]
[1735561737110,5.53738997,3426.2,3426.1,0.2923]
[1735561737321,7.82496313,3426.2,3426.1,0.2923]
[1735561738216,8.11725313,3426.2,3426.1,0.2923]
[1735561738816,7.82496313,3426.2,3426.1,0.2923]
[1735561739623,2.28757316,3426.2,3426.1,0.2923]
[1735561740523,4.90945313,3426.2,3426.1,0.2923]
[1735561740722,4.61716313,3426.2,3425.7,1.1098]
[1735561740918,0.29231,3426.0,3425.9,0.29231]
[1735561741117,2.32958997,3426.2,3426.1,0.2923]
[1735561741318,2.62187997,3426.2,3426.1,0.2923]
[1735561742426,0.2923,3426.1,3426.0,0.2923]
[1735561742723,2.62187997,3426.2,3426.1,0.2923]
[1735561744329,2.32958997,3426.2,3425.7,1.1098]
[1735561744723,2.62187997,3426.2,3426.1,0.2923]
[1735561744928,2.32958997,3426.2,3426.1,0.2923]
[1735561745230,0.29228,3426.3,3426.2,0.29229]
[1735561746224,2.28757316,3426.4,3425.7,0.5742]
[1735561746427,2.57985316,3426.4,3426.3,0.29228]
[1735561746728,0.29229,3426.3,3426.2,0.29228]
[1735561750127,0.2923,3426.2,3426.1,0.29229]
[1735561750918,0.2923,3426.2,3426.0,0.5853]
[1735561751126,6.26811997,3426.2,3425.6,4.55947881]
[1735561751338,0.29233,3425.7,3425.6,4.55947881]
[1735561751826,0.29233,3425.7,3425.6,0.29234]
[1735561752130,0.29233,3425.8,3425.7,0.29233]
[1735561752432,0.29232,3425.9,3425.8,0.29232]
[1735561752728,0.29233,3425.8,3425.7,0.29232]
[1735561752932,0.29233,3425.8,3425.7,0.29233]
[1735561754729,0.29233,3425.7,3425.6,0.29233]
[1735561755132,3.2078,3425.7,3425.4,4.55947881]
[1735561755431,0.29235,3425.6,3425.5,0.29235]
[1735561755726,2.28757316,3426.0,3425.4,4.55947881]
[1735561755931,9.5038351,3426.1,3425.4,4.55947881]
[1735561755932,0.29233,3425.7,3425.6,0.29233]
[1735561756230,0.29233,3425.7,3425.6,0.29234]
[1735561757827,2.28757316,3425.8,3425.7,0.29233]
[1735561758937,2.28757316,3425.9,3425.8,0.29232]
[1735561759233,2.28757316,3425.9,3425.8,3.50012]
[1735561760025,2.57984316,3426.4,3425.8,9.33888653]
[1735561760225,2.57984316,3426.4,3426.3,0.29228]
[1735561761030,0.29229,3426.2,3426.0,0.2923]
[1735561761331,0.29229,3426.2,3426.1,0.2923]
[1735561761527,0.2923,3426.1,3426.0,0.2923]
[1735561762730,0.2923,3426.0,3425.9,0.583]
[1735561764231,5.53738997,3426.1,3425.7,4.55947881]
[1735561764433,5.53738997,3426.1,3425.5,4.55947881]
[1735561764434,0.29234,3425.6,3425.5,4.55947881]
[1735561765538,2.32958997,3425.8,3425.4,4.85182881]
[1735561765837,0.29233,3425.7,3425.6,0.29233]
[1735561766238,2.32958997,3425.8,3425.4,4.55947881]
[1735561766430,2.62193997,3425.5,3425.4,4.55947881]
[1735561767934,0.29236,3425.4,3425.3,10.33981201]
[1735561768138,0.29236,3425.4,3425.3,3.50016]
[1735561768441,0.29236,3425.4,3425.3,0.29236]
[1735561768632,2.32958997,3425.5,3425.2,4.55947881]
[1735561768633,0.29236,3425.3,3425.2,4.55947881]
[1735561768835,4.06736,3425.3,3425.2,4.55947881]
[1735561769432,3.775,3425.3,3425.1,4.55947881]
[1735561769636,2.62195997,3425.2,3425.1,4.55947881]
[1735561770939,0.2924,3424.9,3424.7,0.29241]
[1735561771140,6.19973803,3425.2,3424.7,0.29241]
[1735561771340,0.29241,3424.8,3424.7,0.29241]
[1735561772142,0.29241,3424.8,3424.6,5.66827881]
[1735561772341,0.29241,3424.8,3424.6,5.96069881]
[1735561772543,0.29241,3424.7,3424.6,1.1088]
[1735561773837,0.29241,3424.7,3424.6,0.55]
[1735561774944,0.29241,3424.7,3424.6,0.84242]
[1735561776046,0.29241,3424.7,3424.6,0.55]
[1735561777846,0.29241,3424.7,3424.6,0.84242]
[1735561778043,5.53738997,3424.9,3424.6,0.55]
[1735561778246,5.82978997,3424.9,3424.8,0.29241]
[1735561779446,5.53738997,3424.9,3424.6,0.55]
[1735561779643,5.82978997,3424.9,3424.6,0.55]
[1735561779946,5.82978997,3424.9,3424.8,0.29241]
[1735561780746,0.29241,3424.8,3424.6,0.55]
[1735561780946,0.29241,3424.8,3424.7,0.29241]
[1735561782143,5.53738997,3424.9,3424.6,0.55]
[1735561782349,5.82979997,3424.9,3424.8,0.29241]
[1735561783043,2.62199997,3424.9,3424.8,0.29241]
[1735561783948,0.29241,3424.8,3424.7,0.29241]
[1735561786247,0.29241,3424.7,3424.6,0.84242]
[1735561786449,0.29241,3424.8,3424.7,0.29241]
[1735561786649,2.32958997,3424.9,3424.6,0.55]
[1735561786953,0.29241,3424.8,3424.7,0.29241]
[1735561787154,2.32958997,3424.9,3424.8,0.29241]
[1735561788254,0.29241,3424.8,3424.7,0.29241]
[1735561790557,2.32958997,3424.9,3424.6,0.55]
[1735561790859,0.29241,3424.7,3424.6,0.84241]
[1735561791451,0.29241,3424.8,3424.7,0.29241]
[1735561792157,0.29241,3424.7,3424.6,0.55]
[1735561792346,0.29241,3424.7,3424.6,0.84242]
[1735561793860,0.29241,3424.7,3424.6,0.55]
[1735561794056,2.32958997,3424.9,3424.4,0.5778]
[1735561794057,0.29243,3424.5,3424.4,0.5778]
[1735561794355,5.53738997,3424.5,3424.1,0.5855]
[1735561794561,2.32958997,3424.2,3424.1,1.41906]
[1735561794760,3.2078,3424.5,3424.1,1.1266]
[1735561794761,5.53738997,3424.5,3424.1,1.1266]
[1735561795059,5.82982997,3424.5,3424.4,0.29244]
[1735561796862,5.53738997,3424.5,3424.1,1.1266]
[1735561797057,2.32958997,3424.2,3424.1,1.1266]
[1735561797555,2.62204997,3424.2,3424.1,1.1266]
[1735561797955,2.32958997,3424.2,3423.7,0.5835]
[1735561798157,2.32958997,3424.2,3424.1,0.29247]
[1735561798158,2.62204997,3424.2,3424.1,0.29247]
[1735561799259,2.62204997,3424.2,3423.8,1.1002]
[1735561799260,0.29247,3424.1,3424.0,0.29247]
[1735561800263,0.29248,3424.0,3423.9,0.29248]
[1735561800465,0.29247,3424.1,3424.0,0.29247]
[1735561800866,0.29248,3423.9,3423.8,1.39268]
[1735561801162,0.29248,3423.9,3423.8,1.39269]
[1735561801466,2.62206997,3423.9,3423.8,1.1002]
[1735561803071,0.29251,3423.6,3423.5,4.55947881]
[1735561803368,2.62209997,3423.6,3423.5,4.55947881]
[1735561803962,2.62209997,3423.6,3423.4,0.29252]
[1735561803963,0.29252,3423.5,3423.4,0.29252]
[1735561804661,2.62209997,3423.6,3423.5,0.29252]
[1735561804966,2.32958997,3423.9,3423.3,5.11977881]
[1735561805157,2.62207997,3423.9,3423.8,0.29249]
[1735561805569,2.32958997,3423.9,3423.4,3.2078]
[1735561806066,0.2925,3423.7,3423.6,0.2925]
[1735561807167,2.62207997,3423.9,3423.8,0.29249]
[1735561807364,2.32958997,3423.9,3423.8,0.29249]
[1735561807861,2.62206997,3423.9,3423.8,0.29249]
[1735561808057,2.32958997,3423.9,3423.7,0.57]
[1735561808265,2.62207997,3423.9,3423.8,0.29249]
[1735561808461,2.32958997,3423.9,3423.7,0.57]
[1735561808766,2.62207997,3423.9,3423.8,0.29249]
[1735561809565,2.32958997,3423.9,3423.8,0.29249]
[1735561810161,2.29669787,3424.3,3424.0,0.29247]
[1735561810366,2.29669787,3424.3,3424.2,0.29246]
[1735561810869,2.29669787,3424.3,3424.2,0.86916]
[1735561811064,2.58914787,3424.3,3424.2,0.5767]
[1735561811368,2.29669787,3424.3,3424.2,0.5767]
[1735561811563,2.29669787,3424.3,3424.2,0.86916]
[1735561811768,2.29669787,3424.3,3424.2,0.5767]
[1735561811769,0.29245,3424.3,3424.2,0.5767]
[1735561811957,0.29245,3424.3,3424.2,0.86916]
[1735561812463,0.2925,3423.8,3423.6,4.55947881]
[1735561812664,0.2925,3423.8,3423.7,0.2925]
[1735561812865,0.2925,3423.7,3423.6,4.85197881]
[1735561813064,0.29249,3423.8,3423.7,0.2925]
[1735561813566,0.29246,3424.2,3424.1,0.29246]
[1735561813767,3.72380513,3424.2,3424.1,0.29246]
[1735561814071,3.43134513,3424.2,3423.5,5.72019]
[1735561814268,0.29248,3424.0,3423.9,0.29248]
[1735561814969,0.29247,3424.1,3424.0,0.29247]
[1735561816073,2.29621189,3424.2,3424.1,0.29247]
[1735561816257,2.58867189,3424.2,3424.1,0.29247]
[1735561816463,2.29621189,3424.2,3424.1,0.29247]
[1735561817172,2.29621189,3424.4,3424.3,0.29245]
[1735561817372,2.29621189,3424.4,3424.3,3.50025]
[1735561818769,2.29621189,3424.8,3424.7,0.29241]
[1735561819970,2.29580977,3425.0,3424.9,0.2924]
[1735561820962,2.29580977,3425.0,3424.9,2.62198997]
[1735561821869,4.04664513,3425.7,3425.6,0.29234]
[1735561822069,3.43134513,3425.7,3425.6,0.29234]
[1735561822472,3.72367513,3425.7,3425.3,3.2078]
[1735561822774,3.72367513,3425.7,3425.5,0.29234]
[1735561822974,3.72367513,3425.7,3425.6,0.29234]
[1735561822975,3.43134513,3425.7,3425.6,0.29234]
[1735561823274,0.29233,3425.8,3425.6,0.29234]
[1735561823475,0.29233,3425.8,3425.5,0.29234]
[1735561823773,0.29233,3425.8,3425.6,0.29234]
[1735561824372,2.62190997,3425.9,3425.7,0.29233]
[1735561824770,4.30255513,3426.0,3425.7,0.29233]
[1735561824970,4.01024513,3426.0,3425.9,0.29231]
[1735561825174,4.30255513,3426.0,3425.5,0.29235]
[1735561825375,4.01024513,3426.0,3425.4,1.1596]
[1735561825668,4.01024513,3426.0,3425.9,0.29231]
[1735561825669,0.5789,3426.0,3425.9,0.29231]
[1735561825864,3.43134513,3426.1,3426.0,0.2923]
[1735561826273,0.2923,3426.0,3425.9,0.5914]
[1735561826469,0.8657,3426.0,3425.8,3.2078]
[1735561827173,0.29231,3425.9,3425.8,3.2078]
[1735561827371,1.49341,3425.9,3425.8,3.2078]
[1735561830776,0.29234,3425.7,3425.5,0.5914]
[1735561830974,3.2078,3425.8,3425.2,3.2078]
[1735561831282,2.32958997,3425.3,3424.8,5.72417881]
[1735561831482,0.2924,3424.9,3424.8,5.72417881]
[1735561832076,1.7131,3425.2,3424.8,5.72417881]
[1735561832277,0.29239,3425.1,3424.9,0.2924]
[1735561832476,0.5554,3425.2,3425.1,0.29238]
[1735561833473,0.84777,3425.2,3425.1,0.29238]
[1735561833673,0.5554,3425.2,3425.1,0.29238]
[1735561834273,0.5554,3425.2,3424.8,1.1647]
[1735561834481,0.5554,3425.2,3425.0,0.29239]
[1735561834482,0.29238,3425.1,3425.0,0.29239]
[1735561835178,3.2078,3425.1,3424.6,3.2078]
[1735561835485,0.29241,3424.7,3424.6,3.2078]
[1735561835782,0.29243,3424.5,3424.4,4.55947881]
[1735561836278,0.29243,3424.5,3424.2,10.33990201]
[1735561836279,0.6055,3424.6,3424.2,3.2078]
[1735561836479,0.29245,3424.4,3424.3,0.29244]
[1735561837379,0.29245,3424.3,3424.2,3.50025]
[1735561837578,0.29245,3424.3,3424.2,3.2078]
[1735561837781,0.29245,3424.3,3424.2,0.29246]
[1735561838478,0.29246,3424.2,3424.1,1.43066]
[1735561839686,0.29245,3424.3,3424.2,0.29246]
[1735561839980,0.29246,3424.2,3424.1,0.87166]
[1735561840180,0.6055,3424.6,3423.8,3.2078]
[1735561840377,0.29248,3423.9,3423.8,3.2078]
[1735561840586,0.29249,3423.8,3423.7,4.55947881]
[1735561841387,2.62207997,3423.8,3423.7,4.55947881]
[1735561841688,1.1745,3423.9,3423.3,4.85200881]
[1735561841881,0.29252,3423.5,3423.3,4.85200881]
[1735561842278,0.6131,3423.7,3423.3,4.85200881]
[1735561842475,0.29253,3423.4,3423.3,4.85200881]
[1735561842677,0.29252,3423.5,3423.4,0.29252]
[1735561842882,0.29253,3423.4,3423.3,4.55947881]
[1735561843080,0.29252,3423.5,3423.3,4.85200881]
[1735561843488,3.2078,3423.6,3423.3,0.29253]
[1735561843682,0.29252,3423.5,3423.3,0.29253]
[1735561844289,0.29253,3423.4,3423.3,0.29253]
[1735561844686,3.50031,3423.6,3423.4,0.29252]
[1735561844984,3.2078,3423.6,3423.5,0.29252]
[1735561845188,3.2078,3423.6,3423.4,0.29252]
[1735561845583,3.50031,3423.6,3423.1,2.32958997]
[1735561846094,3.2078,3423.6,3423.4,0.29252]
[1735561846287,0.29252,3423.5,3423.4,0.29252]
[1735561846790,3.2078,3423.6,3423.1,2.32958997]
[1735561846990,3.50031,3423.6,3423.1,2.32958997]
[1735561847488,3.2078,3423.6,3423.5,0.29252]
[1735561850388,3.50031,3423.6,3423.1,2.32958997]